bitfinex-derivatives/quotes_BTCF0:USTF0_20210707
["timestamp","ask_amount","ask_price","bid_price","bid_amount"]
[1625700018167,0.001,34051.0,34050.0,0.00529293]
[1625700018766,0.001,34051.0,34050.0,1.16838674]
[1625700018918,0.002,34056.0,34050.0,4.74055323]
[1625700019219,0.002,34056.0,34051.0,0.00530505]
[1625700019367,0.002,34056.0,34055.0,4.24775716]
[1625700019515,0.002,34056.0,34055.0,4.50483716]
[1625700019817,0.002,34056.0,34055.0,4.51014176]
[1625700020268,0.002,34056.0,34055.0,3.15085947]
[1625700020717,0.002,34056.0,34055.0,2.89377947]
[1625700020870,0.002,34056.0,34055.0,3.37493035]
[1625700021169,0.002,34056.0,34055.0,4.73691867]
[1625700022224,0.002,34056.0,34055.0,3.37493035]
[1625700022525,0.002,34056.0,34055.0,7.97563035]
[1625700024028,0.002,34056.0,34055.0,6.78625835]
[1625700024634,0.26173,34056.0,34055.0,6.78625835]
[1625700024778,0.26173,34056.0,34055.0,5.52622119]
[1625700024779,0.50230544,34056.0,34055.0,5.52622119]
[1625700024930,0.55930544,34056.0,34055.0,5.52622119]
[1625700025079,0.55930544,34056.0,34055.0,4.84127544]
[1625700026429,0.55730544,34056.0,34055.0,4.84127544]
[1625700026880,1.75905422,34056.0,34055.0,4.84127544]
[1625700027630,2.78949395,34056.0,34055.0,4.84127544]
[1625700028907,2.78949395,34056.0,34055.0,4.84656676]
[1625700031916,1.75905422,34056.0,34055.0,4.84656676]
[1625700032816,1.75905422,34056.0,34055.0,4.60599132]
[1625700032967,1.99962966,34056.0,34055.0,4.60599132]
[1625700033117,3.02952382,34056.0,34055.0,4.60599132]
[1625700034622,1.99962966,34056.0,34055.0,4.60599132]
[1625700035368,1.94262966,34056.0,34055.0,4.92424132]
[1625700035518,1.99962966,34056.0,34055.0,4.92424132]
[1625700035669,0.74088088,34056.0,34055.0,4.92424132]
[1625700036419,0.79788088,34056.0,34055.0,4.92424132]
[1625700036572,0.79788088,34056.0,34055.0,4.60599132]
[1625700036719,1.25582275,34056.0,34055.0,4.60599132]
[1625700036869,0.74088088,34056.0,34055.0,4.60599132]
[1625700037171,1.94246398,34056.0,34055.0,4.60599132]
[1625700037619,1.99946398,34056.0,34055.0,4.60599132]
[1625700038521,1.94246398,34056.0,34055.0,4.60599132]
[1625700038671,1.25586958,34056.0,34055.0,4.60599132]
[1625700039122,0.74088088,34056.0,34055.0,4.60599132]
[1625700040024,0.74088088,34056.0,34055.0,4.6007]
[1625700040321,0.74088088,34056.0,34055.0,4.60599034]
[1625700041676,0.50030544,34056.0,34055.0,5.80156017]
[1625700041824,0.25973,34056.0,34055.0,5.80156017]
[1625700041975,0.75679319,34060.0,34055.0,5.80156017]
[1625700042124,0.75679319,34060.0,34056.0,1.19512596]
[1625700042424,0.75679319,34060.0,34055.0,5.63038401]
[1625700042425,0.51521732,34059.0,34057.0,0.00530456]
[1625700042724,0.057,34058.0,34057.0,0.00530456]
[1625700042875,0.57231096,34058.0,34057.0,0.00530456]
[1625700043025,0.57231096,34058.0,34057.0,0.24057544]
[1625700043174,0.57231096,34058.0,34057.0,0.24588035]
[1625700043325,0.57231096,34058.0,34057.0,0.00530491]
[1625700043549,0.51531096,34058.0,34057.0,0.00530491]
[1625700043850,0.51531096,34058.0,34056.0,0.00530481]
[1625700044002,1.20226805,34059.0,34057.0,0.00530473]
[1625700044304,1.20226805,34059.0,34056.0,0.00530473]
[1625700044305,0.51524401,34059.0,34056.0,0.00530473]
[1625700044602,0.51524401,34059.0,34058.0,0.00530473]
[1625700044901,0.51524401,34059.0,34057.0,0.00530469]
[1625700045202,0.51524401,34059.0,34058.0,0.00530474]
[1625700045502,0.057,34059.0,34058.0,0.00530474]
[1625700045652,1.25924501,34059.0,34057.0,0.0053048]
[1625700045801,1.49666501,34059.0,34057.0,0.0053048]
[1625700045953,1.20228463,34058.0,34057.0,0.0053048]
[1625700046104,1.25928463,34058.0,34057.0,0.0053048]
[1625700048055,1.25928463,34058.0,34056.0,0.24157544]
[1625700048357,0.74399526,34058.0,34057.0,0.00530493]
[1625700048582,2.2898574,34058.0,34057.0,0.00530493]
[1625700049259,1.25933988,34058.0,34057.0,0.00530493]
[1625700049560,1.20233988,34058.0,34057.0,0.00530493]
[1625700050083,1.25933988,34058.0,34057.0,0.00530493]
[1625700050384,1.20233988,34058.0,34057.0,0.00530493]
[1625700050534,2.23302071,34058.0,34057.0,0.00530493]
[1625700050834,1.20233988,34058.0,34057.0,0.00530493]
[1625700051734,0.51534462,34058.0,34057.0,0.00530493]
[1625700052332,1.49732904,34059.0,34057.0,0.00530493]
[1625700052485,1.25990904,34059.0,34057.0,0.00530493]
[1625700053307,0.51561803,34058.0,34057.0,0.00530493]
[1625700053833,0.51561803,34058.0,34057.0,0.5176259]
[1625700054210,2.23483628,34058.0,34057.0,0.00530493]
[1625700054512,1.20333971,34058.0,34057.0,0.00530493]
[1625700055711,2.23536958,34058.0,34057.0,0.00530493]
[1625700056387,2.23536958,34058.0,34057.0,0.34660201]
[1625700056690,1.20333971,34058.0,34057.0,0.51709745]
[1625700056990,1.20333971,34058.0,34057.0,1.19946294]
[1625700057295,1.26033971,34058.0,34057.0,1.19946294]
[1625700057442,0.57261803,34058.0,34057.0,1.19946294]
[1625700057591,1.26112923,34058.0,34057.0,1.19946294]
[1625700058040,1.20412923,34058.0,34057.0,1.19946294]
[1625700058342,0.34432921,34058.0,34057.0,2.22141079]
[1625700058642,0.86072946,34059.0,34057.0,3.41344793]
[1625700058792,0.86072946,34059.0,34058.0,2.21379993]
[1625700058942,0.86072946,34059.0,34058.0,2.21910419]
[1625700059091,0.86072946,34059.0,34058.0,2.45967963]
[1625700059845,1.20543694,34059.0,34058.0,3.65244823]
[1625700060743,1.20543694,34059.0,34058.0,2.21910419]
[1625700060744,2.23893075,34059.0,34058.0,2.21910419]
[1625700061194,2.29593075,34059.0,34058.0,2.21910419]
[1625700061344,2.29593075,34059.0,34058.0,1.19735038]
[1625700062096,2.29593075,34059.0,34058.0,2.21989317]
[1625700062848,2.29593075,34059.0,34058.0,1.19735038]
[1625700063151,2.29593075,34059.0,34058.0,2.21993762]
[1625700063297,1.77952298,34059.0,34058.0,2.21993762]
[1625700063598,2.29656199,34059.0,34058.0,2.21993762]
[1625700064198,3.50275678,34059.0,34058.0,2.21993762]
[1625700065699,2.29656199,34059.0,34058.0,2.21993762]
[1625700067207,3.50291505,34059.0,34058.0,1.19735038]
[1625700068553,4.88170659,34059.0,34058.0,0.85652053]
[1625700068703,4.82470659,34059.0,34058.0,0.85652053]
[1625700068853,3.44591505,34059.0,34058.0,2.21734122]
[1625700069753,3.50291505,34059.0,34058.0,2.21734122]
[1625700069978,3.50291505,34059.0,34058.0,1.19664519]
[1625700070205,3.50291505,34059.0,34058.0,2.21756841]
[1625700070504,3.50291505,34059.0,34058.0,1.19664519]
[1625700070803,3.50291505,34059.0,34058.0,2.21755629]
[1625700071253,3.44591505,34059.0,34058.0,2.21755629]
[1625700071930,2.29656199,34059.0,34058.0,2.21755629]
[1625700072230,3.50322224,34059.0,34058.0,2.21755629]
[1625700072379,3.44622224,34059.0,34058.0,2.21755629]
[1625700072831,3.50322224,34059.0,34058.0,2.21755629]
[1625700073432,3.50322224,34059.0,34058.0,1.19664519]
[1625700073956,4.88278957,34059.0,34058.0,2.21766829]
[1625700074257,4.88278957,34059.0,34058.0,0.51618117]
[1625700074556,6.43499049,34059.0,34058.0,0.00530426]
[1625700074705,11.34199049,34059.0,34058.0,0.00530426]
[1625700075156,11.34199049,34059.0,34057.0,0.00530643]
[1625700075533,6.38188941,34058.0,34057.0,0.00530643]
[1625700075680,6.43888941,34058.0,34056.0,0.00530654]
[1625700075980,6.38377769,34057.0,34056.0,0.34606297]
[1625700076131,6.67469769,34057.0,34056.0,0.34606297]
[1625700076281,6.67469769,34057.0,34056.0,0.00530654]
[1625700076732,6.67469769,34057.0,34052.0,0.68194457]
[1625700077033,6.67469769,34057.0,34050.0,0.002]
[1625700077034,5.86659518,34053.0,34050.0,0.002]
[1625700077183,4.79488246,34051.0,34050.0,0.002]
[1625700077332,4.85188246,34051.0,34049.0,0.68213884]
[1625700077483,4.85188246,34051.0,34050.0,0.68129172]
[1625700077632,4.85188246,34051.0,34050.0,0.68659202]
[1625700078233,4.85188246,34051.0,34050.0,0.0053003]
[1625700078683,4.85188246,34051.0,34049.0,0.00530438]
[1625700078908,0.53815088,34051.0,34050.0,0.00530444]
[1625700079135,4.85034192,34051.0,34049.0,0.00530444]
[1625700079434,4.31225781,34050.0,34049.0,0.00530444]
[1625700079584,4.67003781,34050.0,34049.0,0.00530444]
[1625700080336,4.67003781,34050.0,34048.0,0.00530462]
[1625700080638,4.31215687,34049.0,34048.0,0.00530462]
[1625700080786,4.36915687,34049.0,34048.0,0.00530462]
[1625700082512,5.92147087,34049.0,34048.0,0.00530462]
[1625700082813,5.92147087,34049.0,34047.0,0.00530815]
[1625700082963,4.312246,34048.0,34044.0,0.68073522]
[1625700083113,0.057,34047.0,34044.0,0.68073522]
[1625700083266,8.82863976,34045.0,34043.0,0.68109165]
[1625700083413,0.057,34044.0,34043.0,0.68109165]
[1625700083563,3.33445596,34044.0,34043.0,0.68109165]
[1625700083863,3.33445596,34044.0,34043.0,0.68639309]
[1625700084539,1.95451989,34044.0,34043.0,0.68639309]
[1625700085215,2.19509533,34044.0,34043.0,0.68639309]
[1625700086715,2.19509533,34044.0,34043.0,0.00530144]
[1625700087016,2.19509533,34044.0,34043.0,0.17548873]
[1625700087316,2.19509533,34044.0,34043.0,0.00530144]
[1625700087767,2.19509533,34044.0,34043.0,0.17545938]
[1625700087916,2.19509533,34044.0,34043.0,0.00530144]
[1625700089571,0.98762971,34044.0,34043.0,0.00530144]
[1625700090023,0.98762971,34044.0,34043.0,0.68515877]
[1625700090322,0.98762971,34044.0,34043.0,0.00530144]
[1625700090846,0.98762971,34044.0,34043.0,0.6849574]
[1625700091674,0.98762971,34044.0,34043.0,0.00530144]
[1625700092423,0.98762971,34044.0,34043.0,0.68445667]
[1625700093626,0.98762971,34044.0,34043.0,0.00530144]
[1625700093924,0.29757544,34044.0,34043.0,0.00530144]
[1625700094075,0.24057544,34044.0,34043.0,0.00530144]
[1625700094225,0.92940056,34044.0,34043.0,0.67897402]
[1625700094525,0.92940056,34044.0,34043.0,0.00530144]
[1625700094676,0.41288985,34044.0,34043.0,0.67499063]
[1625700094977,0.24057544,34044.0,34043.0,0.67499063]
[1625700095500,0.41287264,34044.0,34043.0,0.67499063]
[1625700096177,0.46987264,34044.0,34043.0,0.67499063]
[1625700096474,0.98624586,34044.0,34043.0,0.17158722]
[1625700096626,0.92924586,34044.0,34043.0,0.17158722]
[1625700097076,0.24057544,34044.0,34043.0,0.66881674]
[1625700097375,0.24057544,34044.0,34043.0,0.90939218]
[1625700098352,0.24057544,34044.0,34043.0,0.9093872]
[1625700098657,0.24057544,34044.0,34043.0,0.91468364]
[1625700099706,0.24057544,34044.0,34043.0,2.07661505]
[1625700101579,0.24057544,34044.0,34043.0,2.36281505]
[1625700103233,0.24057544,34044.0,34043.0,2.37146631]
[1625700103986,0.24057544,34045.0,34043.0,3.6995614]
[1625700104134,0.001,34047.0,34043.0,3.6995614]
[1625700104285,0.001,34047.0,34044.0,3.16855013]
[1625700104586,0.001,34047.0,34046.0,3.15345234]
[1625700104886,0.001,34047.0,34046.0,3.16739092]
[1625700105412,0.001,34047.0,34046.0,3.40796636]
[1625700107361,0.001,34050.0,34046.0,3.40796636]
[1625700107664,0.001,34050.0,34049.0,1.81431889]
[1625700108112,0.001,34050.0,34049.0,1.81960722]
[1625700108863,0.001,34050.0,34049.0,0.66504065]
[1625700109464,0.001,34050.0,34049.0,0.90561609]
[1625700111950,0.001,34050.0,34049.0,2.06180177]
[1625700113443,0.001,34050.0,34049.0,1.89845941]
[1625700114195,0.001,34050.0,34049.0,3.05788948]
[1625700114493,0.17328258,34050.0,34049.0,0.90561609]
[1625700114644,0.23028258,34050.0,34049.0,0.90561609]
[1625700114795,0.74660748,34050.0,34049.0,0.41172162]
[1625700115321,1.77947296,34050.0,34049.0,0.24586377]
[1625700115470,2.0200484,34050.0,34049.0,0.24586377]
[1625700116146,0.98718292,34050.0,34049.0,0.24586377]
[1625700116296,0.98618292,34050.0,34049.0,0.24586377]
[1625700116447,0.98618292,34050.0,34049.0,0.49431951]
[1625700116747,2.01913102,34050.0,34049.0,0.49431951]
[1625700116900,2.01913102,34050.0,34049.0,0.24586377]
[1625700117199,0.98618292,34050.0,34049.0,0.49427735]
[1625700117648,0.98618292,34050.0,34049.0,0.41147282]
[1625700117798,0.92918292,34050.0,34049.0,0.41147282]
[1625700118101,0.24057544,34050.0,34049.0,0.24586377]
[1625700118401,0.41288249,34050.0,34049.0,0.90843372]
[1625700119301,0.24057544,34050.0,34049.0,0.90843372]
[1625700119751,0.92940939,34050.0,34049.0,0.41164343]
[1625700119902,2.01961436,34050.0,34049.0,0.24586377]
[1625700120201,2.01961436,34050.0,34049.0,0.49444468]
[1625700120501,2.01961436,34050.0,34049.0,0.32872407]
[1625700120652,2.01961436,34050.0,34049.0,0.49485548]
[1625700120877,2.01961436,34050.0,34049.0,0.32872407]
[1625700121253,2.01961436,34050.0,34049.0,0.49491891]
[1625700121853,2.01961436,34050.0,34049.0,0.24586377]
[1625700122153,3.22511844,34050.0,34049.0,0.24586377]
[1625700122304,4.60285001,34050.0,34049.0,0.24586377]
[1625700122452,4.60285001,34050.0,34049.0,0.00528833]
[1625700122757,4.60285001,34050.0,34047.0,0.00528833]
[1625700123204,4.30628267,34048.0,34047.0,0.00528833]
[1625700123353,4.36328267,34048.0,34047.0,0.00528833]
[1625700123655,4.60385811,34048.0,34047.0,0.00528833]
[1625700125533,4.60385811,34048.0,34046.0,6.377e-05]
[1625700125682,0.24057544,34047.0,34046.0,6.377e-05]
[1625700125832,4.60381917,34047.0,34046.0,6.377e-05]
[1625700128759,6.15427858,34047.0,34046.0,6.377e-05]
[1625700129058,4.60381917,34047.0,34046.0,6.377e-05]
[1625700130484,6.15432951,34047.0,34046.0,6.377e-05]
[1625700130784,6.15432951,34047.0,34040.0,0.16727617]
[1625700130937,0.5,34046.0,34034.0,0.83781832]
[1625700131086,0.057,34045.0,34034.0,0.5116807]
[1625700131238,1.72330085,34035.0,34033.0,0.25165199]
[1625700131388,0.557,34034.0,34033.0,5.199e-05]
[1625700131535,0.057,34034.0,34031.0,0.63562395]
[1625700131686,0.057,34034.0,34031.0,0.004]
[1625700131687,0.96230176,34032.0,34031.0,0.004]
[1625700131836,1.01930176,34032.0,34031.0,0.004]
[1625700131985,3.60472224,34032.0,34031.0,0.004]
[1625700132588,4.10472224,34032.0,34031.0,0.004]
[1625700132887,3.60472224,34032.0,34031.0,0.004]
[1625700133188,5.32638555,34032.0,34031.0,0.004]
[1625700133339,3.60472224,34032.0,34031.0,0.004]
[1625700137314,3.60472224,34032.0,34028.0,0.001]
[1625700137615,1.03083092,34029.0,34028.0,0.001]
[1625700138666,1.01930176,34032.0,34028.0,0.001]
[1625700138667,1.0300426,34030.0,34028.0,0.001]
[1625700139793,1.02977517,34031.0,34028.0,0.001]
[1625700139943,1.08677517,34031.0,34028.0,0.001]
[1625700142423,1.02927452,34030.0,34028.0,0.001]
[1625700142574,0.057,34029.0,34028.0,0.001]
[1625700143175,1.08636924,34029.0,34028.0,0.001]
[1625700143624,0.057,34029.0,34028.0,0.001]
[1625700145352,1.02907683,34031.0,34028.0,0.001]
[1625700145504,0.057,34030.0,34028.0,0.001]
[1625700145802,1.08576957,34030.0,34028.0,0.001]
[1625700145951,1.35559957,34030.0,34028.0,0.001]
[1625700146103,1.0287851,34029.0,34028.0,0.001]
[1625700146253,1.0857851,34029.0,34026.0,3.6146]
[1625700146703,0.057,34029.0,34026.0,3.6146]
[1625700147754,0.48115088,34027.0,34026.0,3.6146]
[1625700147903,0.53815088,34027.0,34026.0,3.6146]
[1625700148506,0.48115088,34027.0,34026.0,3.6146]
[1625700149331,0.53815088,34027.0,34026.0,3.61993671]
[1625700149480,0.48115088,34027.0,34026.0,3.61993671]
[1625700150906,0.53815088,34027.0,34026.0,3.61993671]
[1625700161724,0.48115088,34027.0,34026.0,3.61993671]
[1625700161873,0.53815088,34027.0,34026.0,3.61993671]
[1625700162850,0.48115088,34027.0,34026.0,3.91760671]
[1625700163000,0.48115088,34027.0,34026.0,3.92626326]
[1625700168932,0.48115088,34027.0,34026.0,3.91760671]
[1625700169084,0.48115088,34027.0,34026.0,3.92626195]
[1625700169232,0.48115088,34027.0,34026.0,3.62859195]
[1625700169382,0.48115088,34027.0,34026.0,3.61993671]
[1625700169682,0.48115088,34027.0,34026.0,3.62859199]
[1625700170960,0.48115088,34027.0,34026.0,3.61993671]
[1625700172311,0.77722088,34027.0,34026.0,3.61993671]
[1625700175090,0.48115088,34027.0,34026.0,3.61993671]
[1625700179672,0.48115088,34027.0,34026.0,4.11327834]
[1625700180123,0.56795088,34027.0,34026.0,4.11327834]
[1625700180273,0.48115088,34027.0,34026.0,0.49867834]
[1625700180424,0.53815088,34027.0,34026.0,0.49867834]
[1625700180574,1.05489767,34027.0,34026.0,0.00533671]
[1625700180724,5.34979767,34027.0,34026.0,0.00533671]
[1625700180874,6.38319408,34027.0,34026.0,0.00533671]
[1625700181027,6.38319408,34027.0,34025.0,0.00531869]
[1625700181175,7.58883269,34027.0,34025.0,0.00531869]
[1625700181327,4.83305088,34027.0,34026.0,0.00531606]
[1625700181624,5.86650865,34027.0,34026.0,0.00531606]
[1625700181776,8.96688194,34027.0,34024.0,0.00531642]
[1625700182226,4.37457451,34025.0,34024.0,0.00531642]
[1625700182376,4.43157451,34025.0,34024.0,0.00531642]
[1625700183277,4.43157451,34025.0,34023.0,0.001]
[1625700183502,4.13387928,34024.0,34023.0,0.001]
[1625700183653,4.19087928,34024.0,34023.0,0.001]
[1625700183803,4.19087928,34024.0,34023.0,0.0063099]
[1625700184103,4.19087928,34024.0,34023.0,0.001]
[1625700184252,4.43145472,34024.0,34023.0,0.001]
[1625700184402,4.43145472,34024.0,34023.0,0.00631003]
[1625700184553,4.43145472,34024.0,34023.0,0.001]
[1625700184852,4.43145472,34024.0,34023.0,0.00631]
[1625700185153,4.43145472,34024.0,34023.0,0.001]
[1625700185304,4.43145472,34024.0,34021.0,0.001]
[1625700185453,4.43145472,34024.0,34023.0,0.00530999]
[1625700185454,0.29757544,34024.0,34023.0,0.00530999]
[1625700185755,4.43479748,34024.0,34023.0,0.00530999]
[1625700186053,4.43479748,34024.0,34022.0,0.00530997]
[1625700186204,4.13719585,34023.0,34021.0,0.001]
[1625700186353,0.057,34022.0,34021.0,0.001]
[1625700186503,3.12899388,34022.0,34021.0,0.001]
[1625700186803,3.12899388,34022.0,34021.0,0.00630999]
[1625700187102,3.12899388,34022.0,34021.0,0.001]
[1625700187260,3.12899388,34022.0,34021.0,0.00630997]
[1625700187929,4.50860654,34022.0,34021.0,0.00630997]
[1625700188081,4.50860654,34022.0,34021.0,0.001]
[1625700188381,4.50860654,34022.0,34021.0,0.00630999]
[1625700191456,5.19887526,34022.0,34021.0,0.00630999]
[1625700196410,5.20092892,34022.0,34021.0,0.00630999]
[1625700197311,5.20092892,34022.0,34021.0,0.00530999]
[1625700197760,5.20092892,34022.0,34019.0,0.00531021]
[1625700198061,5.20092892,34022.0,34021.0,0.00531023]
[1625700198211,0.3708,34022.0,34020.0,0.00531352]
[1625700198362,4.82974211,34021.0,34020.0,0.00531352]
[1625700198515,4.88674211,34021.0,34019.0,0.00531352]
[1625700198814,4.82974331,34020.0,34019.0,0.00531352]
[1625700198964,4.88674331,34020.0,34019.0,0.00531352]
[1625700200167,5.12731875,34020.0,34019.0,0.00531352]
[1625700201218,5.12731875,34020.0,34018.0,0.001]
[1625700201366,4.82870433,34019.0,34018.0,0.001]
[1625700201517,4.88570433,34019.0,34018.0,0.001]
[1625700201668,4.88570433,34019.0,34018.0,0.00631361]
[1625700202271,5.12627977,34019.0,34018.0,0.00631361]
[1625700206395,5.12627977,34019.0,34018.0,0.00531361]
[1625700206844,5.12627977,34019.0,34016.0,0.00531397]
[1625700206996,5.12627977,34019.0,34018.0,0.00531403]
[1625700207295,5.12627977,34019.0,34016.0,0.00531403]
[1625700207445,4.82641818,34017.0,34016.0,0.00531403]
[1625700207595,4.88341818,34017.0,34016.0,0.00531403]
[1625700207745,3.50451542,34017.0,34016.0,0.00531403]
[1625700208195,3.74509086,34017.0,34016.0,0.00531403]
[1625700208495,5.12387942,34017.0,34016.0,0.00531403]
[1625700208645,3.74509086,34017.0,34016.0,0.00531403]
[1625700210147,5.12361102,34017.0,34016.0,0.00531403]
[1625700210597,3.74509086,34017.0,34016.0,0.00531403]
[1625700213079,0.29757544,34017.0,34016.0,0.00531403]
[1625700213302,3.74316684,34017.0,34016.0,0.00531403]
[1625700214651,5.12120235,34017.0,34016.0,0.00531403]
[1625700214876,3.74316684,34017.0,34016.0,0.00531403]
[1625700216530,5.12103303,34017.0,34016.0,0.00531403]
[1625700216831,5.62103303,34017.0,34016.0,0.00531403]
[1625700216978,7.17112071,34017.0,34016.0,0.00531403]
[1625700217352,6.67112071,34017.0,34016.0,0.00531403]
[1625700217504,7.17112071,34017.0,34016.0,0.00531403]
[1625700217653,6.67112071,34017.0,34016.0,0.00531403]
[1625700218104,5.12103303,34017.0,34016.0,0.00531403]
[1625700218704,5.12103303,34017.0,34015.0,0.00530607]
[1625700219005,5.12103303,34017.0,34014.0,0.9942]
[1625700219006,0.29757544,34017.0,34016.0,0.00530603]
[1625700219155,2.53618255,34017.0,34016.0,0.00530603]
[1625700219306,5.11893913,34017.0,34016.0,0.00530603]
[1625700219457,5.11893913,34017.0,34015.0,0.00530606]
[1625700219756,4.82071555,34016.0,34015.0,0.00530606]
[1625700219906,4.87771555,34016.0,34015.0,0.00530606]
[1625700220205,4.82071555,34016.0,34015.0,0.00530606]
[1625700220357,3.74101746,34016.0,34015.0,0.00530606]
[1625700220582,5.11829224,34016.0,34015.0,0.00530606]
[1625700222313,5.61829224,34016.0,34015.0,0.00530606]
[1625700222463,5.11829224,34016.0,34015.0,0.00530606]
[1625700223664,3.74101746,34016.0,34015.0,0.00530606]
[1625700223815,2.53588161,34016.0,34015.0,3.66730606]
[1625700224864,3.74073217,34016.0,34015.0,3.66730606]
[1625700225615,3.74073217,34016.0,34015.0,3.94541606]
[1625700226067,3.68373217,34016.0,34015.0,3.94541606]
[1625700226215,2.47888161,34016.0,34015.0,3.94541606]
[1625700228917,0.5852288,34016.0,34015.0,5.1155515]
[1625700229068,0.24057544,34016.0,34015.0,5.1155515]
[1625700229368,1.1030158,34019.0,34015.0,7.28625102]
[1625700229520,0.86244036,34019.0,34015.0,7.29490901]
[1625700229669,0.001,34019.0,34018.0,1.1686322]
[1625700229817,0.001,34019.0,34018.0,4.66947906]
[1625700229968,0.001,34019.0,34018.0,4.68344061]
[1625700230267,0.68898776,34027.0,34018.0,4.68344061]
[1625700230418,0.8613196,34027.0,34026.0,0.96230176]
[1625700230568,0.69193264,34029.0,34026.0,2.92567628]
[1625700230868,0.69193264,34029.0,34028.0,4.5613]
[1625700231018,0.69193264,34029.0,34028.0,5.22751925]
[1625700231172,0.69193264,34029.0,34028.0,5.23282322]
[1625700231321,0.003,34029.0,34028.0,5.23282322]
[1625700232220,0.003,34029.0,34028.0,6.2312655]
[1625700232822,0.003,34029.0,34028.0,5.23282322]
[1625700232973,0.003,34029.0,34028.0,6.23155709]
[1625700233273,0.003,34029.0,34028.0,5.23282322]
[1625700234098,0.003,34029.0,34028.0,4.56660397]
[1625700234548,0.69201596,34029.0,34028.0,4.56660397]
[1625700236355,0.68901596,34029.0,34028.0,4.56660397]
[1625700236651,1.72266251,34029.0,34028.0,4.56660397]
[1625700236953,2.9285918,34029.0,34028.0,4.56660397]
[1625700237852,1.72266251,34029.0,34028.0,4.56660397]
[1625700239352,0.68901596,34029.0,34028.0,4.56660397]
[1625700241458,0.68906234,34030.0,34028.0,4.56660397]
[1625700241830,0.68906353,34029.0,34028.0,4.5613]
[1625700242132,0.68900926,34030.0,34028.0,5.23439238]
[1625700242730,0.68900926,34030.0,34029.0,0.00531155]
[1625700244161,1.0335074,34031.0,34029.0,0.00531155]
[1625700244162,0.68877181,34031.0,34029.0,0.00531155]
[1625700244308,0.68877372,34030.0,34029.0,0.00531155]
[1625700245207,0.68861122,34031.0,34029.0,0.00531155]
[1625700246259,0.001,34032.0,34029.0,0.67286451]
[1625700246561,0.001,34032.0,34031.0,0.24057544]
[1625700247160,0.001,34032.0,34031.0,0.24588648]
[1625700249416,0.001,34033.0,34031.0,0.24588648]
[1625700249717,0.001,34033.0,34032.0,0.00531093]
[1625700250619,0.001,34033.0,34032.0,0.24588637]
[1625700254529,0.001,34033.0,34032.0,0.91328163]
[1625700254829,0.001,34033.0,34032.0,1.91415195]
[1625700255430,1.44284794,34045.0,34041.0,4.2702]
[1625700255578,1.44284794,34045.0,34041.0,4.55473]
[1625700255731,0.24057544,34045.0,34041.0,4.55473]
[1625700255880,1.20219755,34047.0,34041.0,4.55473]
[1625700256031,1.44670683,34048.0,34042.0,0.00530866]
[1625700256185,0.004,34048.0,34042.0,0.00530866]
[1625700256784,0.004,34048.0,34047.0,0.72172632]
[1625700257236,0.004,34048.0,34047.0,0.72703468]
[1625700258288,1.44484761,34052.0,34047.0,0.72703468]
[1625700258590,1.44484761,34052.0,34051.0,3.97537575]
[1625700258740,1.44484761,34052.0,34051.0,4.47361119]
[1625700258890,1.44484761,34052.0,34051.0,4.47891362]
[1625700259266,0.24457544,34052.0,34051.0,4.47891362]
[1625700259944,1.44472172,34052.0,34051.0,4.47891362]
[1625700260244,0.24457544,34052.0,34051.0,4.47891362]
[1625700260694,0.24457544,34052.0,34051.0,3.97537575]
[1625700260844,0.30157544,34052.0,34051.0,3.97537575]
[1625700260995,2.87210584,34052.0,34051.0,3.97537575]
[1625700261447,3.16500584,34052.0,34051.0,3.97537575]
[1625700261896,1.79406772,34052.0,34051.0,3.97537575]
[1625700262046,3.16490924,34052.0,34051.0,3.97537575]
[1625700262347,1.79406772,34052.0,34051.0,3.97537575]
[1625700262647,3.164539,34052.0,34051.0,3.97537575]
[1625700262796,1.79406772,34052.0,34051.0,3.97537575]
[1625700263095,1.73706772,34052.0,34051.0,3.97537575]
[1625700263398,1.79406772,34052.0,34051.0,3.97537575]
[1625700263849,3.46937347,34052.0,34051.0,3.97537575]
[1625700264225,3.46537347,34052.0,34051.0,3.97537575]
[1625700264374,3.46937347,34052.0,34051.0,3.97537575]
[1625700267303,3.46537347,34052.0,34051.0,4.19443575]
[1625700270911,3.46537347,34052.0,34051.0,3.97537575]
[1625700272414,5.00689338,34052.0,34051.0,3.97537575]
[1625700272562,3.46537347,34052.0,34051.0,3.97537575]
[1625700272794,5.0069957,34052.0,34051.0,3.97537575]
[1625700273093,3.46537347,34052.0,34051.0,3.97537575]
[1625700275723,3.46537347,34052.0,34051.0,3.98067712]
[1625700282784,5.01026702,34052.0,34051.0,3.98067712]
[1625700283384,3.46537347,34052.0,34051.0,3.98067712]
[1625700283535,5.01135636,34052.0,34051.0,3.98067712]
[1625700285712,6.04298942,34052.0,34051.0,3.98067712]
[1625700290591,6.05544034,34052.0,34051.0,3.98067712]
[1625700290890,6.05544034,34052.0,34051.0,4.22125256]
[1625700293297,6.05544034,34052.0,34051.0,0.24587681]
[1625700293446,6.05544034,34052.0,34051.0,0.00530137]
[1625700293748,7.77836773,34052.0,34049.0,0.00099841]
[1625700293897,8.27836773,34052.0,34049.0,0.00099841]
[1625700294274,6.8925134,34050.0,34049.0,0.00099841]
[1625700294423,6.9495134,34050.0,34049.0,0.00099841]
[1625700294573,6.9495134,34050.0,34044.0,0.002]
[1625700294574,7.15627415,34050.0,34044.0,0.002]
[1625700294874,7.6146677,34045.0,34044.0,0.002]
[1625700295024,7.9880277,34045.0,34044.0,0.002]
[1625700295325,8.00049647,34045.0,34044.0,0.002]
[1625700297278,8.00049647,34045.0,34043.0,0.002]
[1625700297578,6.89522481,34044.0,34043.0,0.002]
[1625700297728,6.95222481,34044.0,34043.0,0.002]
[1625700299532,7.29317481,34044.0,34043.0,0.002]
[1625700303812,7.29317481,34044.0,34038.0,0.003]
[1625700304112,5.17201048,34039.0,34038.0,0.003]
[1625700304266,5.22901048,34039.0,34038.0,0.003]
[1625700304413,6.9530621,34039.0,34038.0,0.003]
[1625700305015,5.0108,34032.0,34028.0,0.005]
[1625700305166,5.39592,34032.0,34028.0,0.005]
[1625700305391,10.56709814,34032.0,34028.0,0.005]
[1625700306140,12.29089166,34032.0,34028.0,0.005]
[1625700306293,12.29089166,34032.0,34025.0,0.24457544]
[1625700306440,12.79089166,34032.0,34019.0,0.22503847]
[1625700306594,5.17180242,34026.0,34019.0,0.22503847]
[1625700306740,0.057,34025.0,34019.0,0.22503847]
[1625700306891,2.2387682,34020.0,34019.0,0.22503847]
[1625700307041,2.77691908,34020.0,34019.0,0.22503847]
[1625700307191,2.77691908,34020.0,34019.0,0.23033902]
[1625700307342,4.15456169,34020.0,34019.0,0.23033902]
[1625700307490,4.15456169,34020.0,34012.0,2.17817397]
[1625700307641,4.15456169,34020.0,34012.0,1.24557397]
[1625700307794,1.0332952,34017.0,34012.0,1.24557397]